fUST/lending_fUST_20240118
["ID","MTS","AMOUNT","RATE_DAILY","PERIOD"]
[311952667,1705513859657,-500.0,0.00022465,2]
[311952668,1705513859686,-500.0,0.00022465,2]
[311952669,1705513859704,-500.0,0.00022465,2]
[311952670,1705513859716,-500.0,0.00022465,2]
[311952671,1705513859734,-500.0,0.00022465,2]
[311952672,1705513859750,-608.64434299,0.00022465,2]
[311952673,1705513859773,-500.0,0.00022465,2]
[311952674,1705513859796,-500.0,0.00022465,2]
[311952675,1705513859830,-518.29322091,0.00022465,2]
[311952676,1705513859846,-500.0,0.00022465,2]
[311952677,1705513859873,-500.0,0.00022465,2]
[311952678,1705513859910,-500.0,0.00022465,2]
[311952679,1705513859952,-500.0,0.00022465,2]
[311952680,1705513859977,-500.0,0.00022465,2]
[311952682,1705513860006,-373.15444107,0.00022465,2]
[311952683,1705513860034,-500.0,0.00022465,2]
[311952684,1705513860062,-500.0,0.00022465,2]
[311952685,1705513860094,-500.0,0.00022465,2]
[311952686,1705513860116,-500.0,0.00022465,2]
[311952687,1705513860134,-500.0,0.00022465,2]
[311952688,1705513860166,-500.0,0.00022465,2]
[311952689,1705513860206,-500.0,0.00022465,2]
[311952690,1705513860234,-500.0,0.00022465,2]
[311952691,1705513860255,-500.0,0.00022465,2]
[311952692,1705513860292,-13706.8,0.00022465,2]
[311952693,1705513860331,-324.20723267,0.00022465,2]
[311952694,1705513860362,-500.0,0.00022465,2]
[311952695,1705513860383,-500.0,0.00022465,2]
[311952696,1705513860400,-500.0,0.00022465,2]
[311952697,1705513860429,-2042.28,0.00022465,2]
[311952698,1705513860448,-500.0,0.00022465,2]
[311952699,1705513860475,-500.0,0.00022465,2]
[311952700,1705513860511,-500.0,0.00022465,2]
[311952701,1705513860541,-500.0,0.00022465,2]
[311952702,1705513860564,-500.0,0.00022465,2]
[311952703,1705513860582,-652.93,0.00022465,2]
[311952704,1705513860607,-500.0,0.00022465,2]
[311952705,1705513860635,-1459.83,0.00022465,2]
[311952706,1705513860649,-500.0,0.00022465,2]
[311952707,1705513860674,-500.0,0.00022465,2]
[311952708,1705513860704,-500.0,0.00022465,2]
[311952709,1705513860729,-1079.10068418,0.00022465,2]
[311952710,1705513860740,-500.0,0.00022465,2]
[311952711,1705513860775,-500.0,0.00022465,2]
[311952712,1705513860798,-500.0,0.00022465,2]
[311952713,1705513860822,-500.0,0.00022465,2]
[311952714,1705513860861,-500.0,0.00022465,2]
[311952715,1705513860880,-500.0,0.00022465,2]
[311952716,1705513860917,-500.0,0.00022465,2]
[311952717,1705513860935,-500.0,0.00022465,2]
[311952718,1705513860963,-500.0,0.00022465,2]
[311952719,1705513860986,-500.0,0.00022465,2]
[311952720,1705513861018,-500.0,0.00022465,2]
[311952721,1705513861048,-500.0,0.00022465,2]
[311952722,1705513861077,-2933.48,0.00022465,2]
[311952723,1705513861092,-500.0,0.00022465,2]
[311952724,1705513861118,-500.0,0.00022465,2]
[311952725,1705513861148,-500.0,0.00022465,2]
[311952726,1705513861168,-953.91,0.00022502,2]
[311952727,1705513861190,-5000.0,0.00022568,2]
[311952728,1705513861218,-13057.68110516,0.00022574,2]
[311952729,1705513861235,-2883.80695377,0.0002258,2]
[311952730,1705513861269,-3494.50541474,0.00022585,2]
[311952731,1705513861300,-1412.26021868,0.0002259,2]
[311952732,1705513861325,-3258.21,0.000226,2]
[311952733,1705513861409,-500.0,0.000226,2]
[311952734,1705513861431,-500.0,0.000226,2]
[311952735,1705513861458,-491.09870363,0.000226,2]
[311952736,1705513861475,-1592.28,0.000226,2]
[311952737,1705513861503,-953.91,0.00022601,2]
[311952738,1705513861531,-500.0,0.00022601,2]
[311952739,1705513861566,-500.0,0.00022602,2]
[311952740,1705513861585,-558.05,0.00022602,2]
[311952741,1705513861598,-592.06,0.00022602,2]
[311952742,1705513861634,-500.0,0.00022602,2]
[311952743,1705513861659,-500.0,0.00022602,2]
[311952744,1705513861680,-500.0,0.00022602,2]
[311952745,1705513861700,-500.0,0.00022602,2]
[311952746,1705513861719,-500.0,0.00022602,2]
[311952747,1705513861738,-500.0,0.00022602,2]
[311952748,1705513861773,-500.0,0.00022602,2]
[311952749,1705513861810,-500.0,0.00022602,2]
[311952750,1705513861830,-500.0,0.00022602,2]
[311952751,1705513861851,-500.0,0.00022602,2]
[311952752,1705513861877,-500.0,0.00022602,2]
[311952753,1705513861902,-500.0,0.00022602,2]
[311952754,1705513861923,-500.0,0.00022602,2]
[311952755,1705513861942,-500.0,0.00022602,2]
[311952756,1705513861956,-500.0,0.00022602,2]
[311952757,1705513861987,-500.0,0.00022602,2]
[311952758,1705513862016,-500.0,0.00022602,2]
[311952759,1705513862028,-500.0,0.00022602,2]
[311952760,1705513862058,-13706.8,0.00022602,2]
[311952761,1705513862078,-500.0,0.00022602,2]
[311952762,1705513862100,-500.0,0.00022602,2]
[311952763,1705513862126,-2042.28,0.00022602,2]
[311952764,1705513862154,-500.0,0.00022602,2]
[311952765,1705513862175,-500.0,0.00022602,2]
[311952766,1705513862206,-500.0,0.00022602,2]
[311952767,1705513862227,-500.0,0.00022602,2]
[311952768,1705513862246,-652.93,0.00022602,2]
[311952769,1705513862263,-500.0,0.00022602,2]
[311952770,1705513862300,-1459.83,0.00022602,2]
[311952771,1705513862310,-500.0,0.00022602,2]
[311952772,1705513862351,-500.0,0.00022602,2]
[311952773,1705513862370,-500.0,0.00022602,2]
[311952774,1705513862390,-500.0,0.00022602,2]
[311952775,1705513862422,-500.0,0.00022602,2]
[311952776,1705513862445,-500.0,0.00022602,2]
[311952777,1705513862466,-500.0,0.00022602,2]
[311952778,1705513862485,-500.0,0.00022602,2]
[311952779,1705513862513,-500.0,0.00022602,2]
[311952780,1705513862551,-500.0,0.00022602,2]
[311952781,1705513862570,-500.0,0.00022602,2]
[311952782,1705513862595,-500.0,0.00022602,2]
[311952783,1705513862618,-2933.48,0.00022602,2]
[311952784,1705513862638,-500.0,0.00022602,2]
[311952785,1705513862669,-500.0,0.00022602,2]
[311952786,1705513862694,-500.0,0.00022638,2]
[311952787,1705513862732,-953.91,0.00022736,2]
[311952788,1705513862765,-3258.21,0.00022737,2]
[311952789,1705513862792,-500.0,0.00022737,2]
[311952790,1705513862817,-500.0,0.00022737,2]
[311952791,1705513862841,-1592.28,0.00022737,2]
[311952792,1705513862863,-953.91,0.00022738,2]
[311952793,1705513862891,-500.0,0.00022738,2]
[311952794,1705513862924,-407.40474853,0.00022738,2]
[311952795,1705513862946,-500.0,0.00022739,2]
[311952796,1705513862971,-558.05,0.00022739,2]
[311952797,1705513862994,-592.06,0.00022739,2]
[311952798,1705513863018,-500.0,0.00022739,2]
[311952799,1705513863054,-500.0,0.00022739,2]
[311952800,1705513863076,-500.0,0.00022739,2]
[311952801,1705513863089,-500.0,0.00022739,2]
[311952802,1705513863118,-500.0,0.00022739,2]
[311952803,1705513863140,-500.0,0.00022739,2]
[311952804,1705513863150,-500.0,0.00022739,2]
[311952805,1705513863189,-500.0,0.00022739,2]
[311952806,1705513863206,-500.0,0.00022739,2]
[311952807,1705513863237,-500.0,0.00022739,2]
[311952808,1705513863255,-500.0,0.00022739,2]
[311952809,1705513863281,-500.0,0.00022739,2]
[311952810,1705513863310,-500.0,0.00022739,2]
[311952811,1705513863330,-500.0,0.00022739,2]
[311952812,1705513863369,-13706.8,0.00022739,2]
[311952813,1705513863393,-500.0,0.00022739,2]
[311952814,1705513863410,-2042.28,0.00022739,2]
[311952815,1705513863436,-500.0,0.00022739,2]
[311952816,1705513863457,-500.0,0.00022739,2]
[311952817,1705513863479,-500.0,0.00022739,2]
[311952818,1705513863501,-500.0,0.00022739,2]
[311952819,1705513863525,-652.93,0.00022739,2]
[311952820,1705513863554,-500.0,0.00022739,2]
[311952821,1705513863573,-1459.83,0.00022739,2]
[311952822,1705513863590,-500.0,0.00022739,2]
[311952823,1705513863623,-500.0,0.00022739,2]
[311952824,1705513863648,-500.0,0.00022739,2]
[311952825,1705513863665,-500.0,0.00022739,2]
[311952826,1705513863694,-500.0,0.00022739,2]
[311952827,1705513863711,-500.0,0.00022739,2]
[311952828,1705513863740,-500.0,0.00022739,2]
[311952829,1705513863766,-500.0,0.00022739,2]
[311952830,1705513863785,-500.0,0.00022739,2]
[311952831,1705513863807,-500.0,0.00022739,2]
[311952832,1705513863839,-500.0,0.00022739,2]
[311952833,1705513863863,-500.0,0.00022739,2]
[311952834,1705513863886,-2933.48,0.00022739,2]
[311952835,1705513863916,-500.0,0.00022739,2]
[311952836,1705513863944,-500.0,0.00022739,2]
[311952837,1705513863965,-3258.21,0.00022874,2]
[311952838,1705513863995,-500.0,0.00022874,2]
[311952839,1705513864011,-1592.28,0.00022874,2]
[311952840,1705513864054,-953.91,0.00022875,2]
[311952841,1705513864071,-953.91,0.00022875,2]
[311952842,1705513864082,-953.91,0.00022875,2]
[311952843,1705513864118,-953.91,0.00022875,2]
[311952844,1705513864131,-954.01610238,0.00022875,2]
[311952845,1705513864163,-558.05,0.00022876,2]
[311952846,1705513864184,-592.06,0.00022876,2]
[311952847,1705513864200,-500.0,0.00022876,2]
[311952848,1705513864233,-500.0,0.00022876,2]
[311952849,1705513864254,-500.0,0.00022876,2]
[311952850,1705513864274,-500.0,0.00022876,2]
[311952851,1705513864296,-500.0,0.00022876,2]
[311952852,1705513864314,-500.0,0.00022876,2]
[311952853,1705513864400,-500.0,0.00022876,2]
[311952854,1705513864420,-500.0,0.00022876,2]
[311952855,1705513864437,-500.0,0.00022876,2]
[311952856,1705513864471,-500.0,0.00022876,2]
[311952857,1705513864506,-500.0,0.00022876,2]
[311952858,1705513864517,-500.0,0.00022876,2]
[311952859,1705513864546,-600.04,0.00022876,2]
[311952860,1705513864574,-13706.8,0.00022876,2]
[311952861,1705513864599,-500.0,0.00022876,2]
[311952862,1705513864621,-2042.28,0.00022876,2]
[311952863,1705513864652,-500.0,0.00022876,2]
[311952864,1705513864674,-500.0,0.00022876,2]
[311952865,1705513864703,-500.0,0.00022876,2]
[311952866,1705513864717,-652.93,0.00022876,2]
[311952867,1705513864739,-500.0,0.00022876,2]
[311952868,1705513864764,-1459.83,0.00022876,2]
[311952869,1705513864783,-500.0,0.00022876,2]
[311952870,1705513864809,-500.0,0.00022876,2]
[311952871,1705513864830,-500.0,0.00022876,2]
[311952872,1705513864847,-500.0,0.00022876,2]
[311952873,1705513864874,-500.0,0.00022876,2]
[311952874,1705513864897,-500.0,0.00022876,2]
[311952875,1705513864909,-500.0,0.00022876,2]
[311952876,1705513864941,-500.0,0.00022876,2]
[311952877,1705513864982,-500.0,0.00022876,2]
[311952878,1705513864997,-500.0,0.00022876,2]
[311952879,1705513865026,-500.0,0.00022876,2]
[311952880,1705513865057,-500.0,0.00022876,2]
[311952881,1705513865092,-2933.48,0.00022876,2]
[311952882,1705513865108,-500.0,0.00022876,2]
[311952883,1705513865150,-500.0,0.00022876,2]
[311952884,1705513865179,-166.666666,0.00022944,2]
[311952885,1705513865209,-3258.21,0.00023011,2]
[311952886,1705513865243,-500.0,0.00023011,2]
[311952887,1705513865266,-1592.28,0.00023011,2]
[311952888,1705513865290,-500.0,0.00023012,2]
[311952889,1705513865319,-558.05,0.00023013,2]
[311952890,1705513865345,-592.06,0.00023013,2]
[311952891,1705513865372,-500.0,0.00023013,2]
[311952892,1705513865399,-500.0,0.00023013,2]
[311952893,1705513865424,-500.0,0.00023013,2]
[311952894,1705513865457,-500.0,0.00023013,2]
[311952895,1705513865511,-500.0,0.00023013,2]
[311952896,1705513865528,-500.0,0.00023013,2]
[311952897,1705513865564,-500.0,0.00023013,2]
[311952898,1705513865590,-500.0,0.00023013,2]
[311952899,1705513865608,-500.0,0.00023013,2]
[311952900,1705513865641,-500.0,0.00023013,2]
[311952901,1705513865663,-500.0,0.00023013,2]
[311952902,1705513865691,-13706.8,0.00023013,2]
[311952903,1705513865721,-500.0,0.00023013,2]
[311952904,1705513865744,-2042.28,0.00023013,2]
[311952905,1705513865765,-500.0,0.00023013,2]
[311952906,1705513865790,-500.0,0.00023013,2]
[311952907,1705513865812,-500.0,0.00023013,2]
[311952908,1705513865854,-652.93,0.00023013,2]
[311952909,1705513865876,-500.0,0.00023013,2]
[311952910,1705513865937,-1459.83,0.00023013,2]
[311952911,1705513865990,-500.0,0.00023013,2]
[311952912,1705513866013,-500.0,0.00023013,2]
[311952913,1705513866033,-500.0,0.00023013,2]
[311952914,1705513866070,-500.0,0.00023013,2]
[311952915,1705513866099,-500.0,0.00023013,2]
[311952916,1705513866134,-539.93,0.00023013,2]
[311952917,1705513866166,-500.0,0.00023013,2]
[311952918,1705513866198,-500.0,0.00023013,2]
[311952919,1705513866235,-500.0,0.00023013,2]
[311952920,1705513866284,-500.0,0.00023013,2]
[311952921,1705513866334,-500.0,0.00023013,2]
[311952922,1705513866368,-500.0,0.00023013,2]
[311952923,1705513866404,-2933.48,0.00023013,2]
[311952924,1705513866434,-500.0,0.00023013,2]
[311952925,1705513866490,-500.0,0.00023013,2]
[311952926,1705513866541,-3258.21,0.00023148,2]
[311952927,1705513866562,-1592.28,0.00023148,2]
[311952928,1705513866598,-558.05,0.0002315,2]
[311952929,1705513866630,-592.06,0.0002315,2]
[311952930,1705513866669,-500.0,0.0002315,2]
[311952931,1705513866703,-500.0,0.0002315,2]
[311952932,1705513866735,-500.0,0.0002315,2]
[311952933,1705513866767,-500.0,0.0002315,2]
[311952934,1705513866790,-500.0,0.0002315,2]
[311952935,1705513866832,-500.0,0.0002315,2]
[311952936,1705513866852,-500.0,0.0002315,2]
[311952937,1705513866893,-177.5784829,0.0002315,2]
[311952938,1705513866976,-500.0,0.0002315,2]
[311952939,1705513866998,-13706.8,0.0002315,2]
[311952940,1705513867052,-500.0,0.0002315,2]
[311952941,1705513867102,-2042.28,0.0002315,2]
[311952942,1705513867128,-500.0,0.0002315,2]
[311952943,1705513867168,-500.0,0.0002315,2]
[311952944,1705513867182,-500.0,0.0002315,2]
[311952945,1705513867228,-652.93,0.0002315,2]
[311952946,1705513867284,-500.0,0.0002315,2]
[311952947,1705513867328,-1459.83,0.0002315,2]
[311952948,1705513867359,-500.0,0.0002315,2]
[311952949,1705513867395,-500.0,0.0002315,2]
[311952950,1705513867445,-500.0,0.0002315,2]
[311952951,1705513867495,-500.0,0.0002315,2]
[311952952,1705513867538,-500.0,0.0002315,2]
[311952953,1705513867590,-500.0,0.0002315,2]
[311952954,1705513867639,-500.0,0.0002315,2]
[311952955,1705513867696,-500.0,0.0002315,2]
[311952956,1705513867741,-500.0,0.0002315,2]
[311952957,1705513867763,-500.0,0.0002315,2]
[311952958,1705513867787,-2933.48,0.0002315,2]
[311952959,1705513867820,-500.0,0.0002315,2]
[311952960,1705513867857,-500.0,0.0002315,2]
[311952961,1705513867886,-3258.21,0.00023285,2]
[311952962,1705513867910,-1592.28,0.00023285,2]
[311952963,1705513867950,-500.0,0.00023286,2]
[311952964,1705513868086,-558.05,0.00023287,2]
[311952965,1705513868111,-592.06,0.00023287,2]
[311952966,1705513868134,-500.0,0.00023287,2]
[311952967,1705513868151,-500.0,0.00023287,2]
[311952968,1705513868195,-500.0,0.00023287,2]
[311952969,1705513868214,-500.0,0.00023287,2]
[311952970,1705513868235,-500.0,0.00023287,2]
[311952971,1705513868254,-500.0,0.00023287,2]
[311952972,1705513868275,-500.0,0.00023287,2]
[311952973,1705513868306,-531.62,0.00023287,2]
[311952974,1705513868326,-13706.8,0.00023287,2]
[311952975,1705513868352,-500.0,0.00023287,2]
[311952976,1705513868372,-2042.28,0.00023287,2]
[311952977,1705513868406,-500.0,0.00023287,2]
[311952978,1705513868434,-500.0,0.00023287,2]
[311952979,1705513868473,-500.0,0.00023287,2]
[311952980,1705513868490,-652.93,0.00023287,2]
[311952981,1705513868514,-500.0,0.00023287,2]
[311952982,1705513868562,-1459.83,0.00023287,2]
[311952983,1705513868581,-500.0,0.00023287,2]
[311952984,1705513868601,-500.0,0.00023287,2]
[311952985,1705513868648,-563.04,0.00023287,2]
[311952986,1705513868675,-500.0,0.00023287,2]
[311952987,1705513868706,-500.0,0.00023287,2]
[311952988,1705513868731,-572.52,0.00023287,2]
[311952989,1705513868756,-235.63871188,0.00023287,2]
[311952990,1705513868783,-500.0,0.00023287,2]
[311952991,1705513868822,-500.0,0.00023287,2]
[311952992,1705513868854,-500.0,0.00023287,2]
[311952993,1705513868866,-2933.48,0.00023287,2]
[311952994,1705513868907,-500.0,0.00023287,2]
[311952995,1705513868927,-500.0,0.00023287,2]
[311952996,1705513868965,-500.0,0.00023288,2]
[311952997,1705513868983,-500.0,0.00023288,2]
[311952998,1705513869002,-500.0,0.00023288,2]
[311952999,1705513869064,-500.0,0.00023288,2]
[311953000,1705513869093,-500.0,0.00023288,2]
[311953001,1705513869126,-500.0,0.00023288,2]
[311953002,1705513869152,-500.0,0.00023288,2]
[311953003,1705513869169,-500.0,0.00023288,2]
[311953004,1705513869190,-500.0,0.00023288,2]
[311953005,1705513869225,-500.0,0.00023288,2]
[311953006,1705513869238,-500.0,0.00023288,2]
[311953007,1705513869262,-500.0,0.00023288,2]
[311953008,1705513869278,-500.0,0.00023288,2]
[311953009,1705513869322,-485.96924868,0.00023288,2]
[311953010,1705513869337,-500.0,0.00023288,2]
[311953011,1705513869373,-414.7467261,0.00023288,2]
[311953012,1705513869401,-500.0,0.00023288,2]
[311953013,1705513869427,-500.0,0.00023288,2]
[311953014,1705513869469,-311.38614562,0.00023288,2]
[311953015,1705513869499,-500.0,0.00023288,2]
[311953016,1705513869521,-523.2485405,0.00023288,2]
[311953017,1705513869542,-500.0,0.00023288,2]
[311953018,1705513869566,-313.26033516,0.00023288,2]
[311953019,1705513869605,-453.17596052,0.00023288,2]
[311953020,1705513869628,-580.18762025,0.00023288,2]
[311953021,1705513869660,-542.35541798,0.00023288,2]
[311953022,1705513869701,-500.0,0.00023288,2]
[311953023,1705513869740,-235.82312646,0.00023288,2]
[311953024,1705513869764,-500.0,0.00023288,2]
[311953025,1705513869788,-401.27195423,0.00023288,2]
[311953026,1705513869809,-423.38417427,0.00023288,2]
[311953027,1705513869836,-377.93232635,0.00023288,4]
[311953028,1705513869857,-500.0,0.00023288,4]
[311953029,1705513869881,-500.0,0.00023288,4]
[311953030,1705513869919,-500.0,0.00023288,4]
[311953031,1705513869946,-219.1407239,0.00023288,4]
[311953032,1705513869969,-419.53969976,0.00023288,4]
[311953033,1705513869991,-400.0,0.00023288,4]
[311953034,1705513870015,-500.0,0.00023288,4]
[311953035,1705513870052,-580.11932146,0.00023288,4]
[311953036,1705513870089,-500.0,0.00023288,4]
[311953037,1705513870117,-500.0,0.00023288,4]
[311953038,1705513870133,-500.0,0.00023288,4]
[311953039,1705513870163,-500.0,0.00023288,4]
[311953040,1705513870184,-500.0,0.00023288,4]
[311953041,1705513870201,-500.0,0.00023288,4]
[311953042,1705513870243,-500.0,0.00023288,4]
[311953043,1705513870273,-500.0,0.00023288,4]
[311953044,1705513870305,-500.0,0.00023288,4]
[311953045,1705513870326,-500.0,0.00023288,4]
[311953046,1705513870340,-500.0,0.00023288,4]
[311953047,1705513870368,-500.0,0.00023288,4]
[311953048,1705513870392,-500.0,0.00023288,4]
[311953049,1705513870418,-500.0,0.00023288,4]
[311953050,1705513870438,-500.0,0.00023288,4]
[311953051,1705513870459,-500.0,0.00023288,4]
[311953052,1705513870492,-500.0,0.00023288,4]
[311953053,1705513870507,-500.0,0.00023288,4]
[311953054,1705513870538,-500.0,0.00023288,4]
[311953055,1705513870551,-500.0,0.00023288,4]
[311953056,1705513870577,-500.0,0.00023288,4]
[311953057,1705513870596,-500.0,0.00023288,4]
[311953058,1705513870623,-500.0,0.00023288,4]
[311953059,1705513870664,-500.0,0.00023288,4]
[311953060,1705513870677,-500.0,0.00023288,4]
[311953061,1705513870714,-500.0,0.00023288,4]
[311953062,1705513870730,-500.0,0.00023288,4]
[311953063,1705513870770,-500.0,0.00023288,4]
[311953064,1705513870786,-351.21716035,0.00023288,4]
[311953065,1705513870815,-500.0,0.00023288,4]
[311953066,1705513870831,-500.0,0.00023288,4]
[311953067,1705513870842,-500.0,0.00023288,4]
[311953068,1705513870874,-500.0,0.00023288,4]
[311953069,1705513870896,-500.0,0.00023288,4]
[311953070,1705513870928,-500.0,0.00023288,4]
[311953071,1705513870947,-500.0,0.00023288,4]
[311953072,1705513870973,-229.49354437,0.00023288,4]
[311953073,1705513870994,-500.0,0.00023288,4]
[311953074,1705513871019,-500.0,0.00023288,4]
[311953075,1705513871033,-314.05050622,0.00023288,4]
[311953076,1705513871065,-572.20028416,0.00023288,4]
[311953077,1705513871090,-500.0,0.00023288,4]
[311953078,1705513871102,-500.0,0.00023288,4]
[311953079,1705513871118,-500.0,0.00023288,4]
[311953080,1705513871132,-500.0,0.00023288,4]
[311953081,1705513871151,-500.0,0.00023288,4]
[311953082,1705513871174,-500.0,0.00023288,4]
[311953083,1705513871195,-500.0,0.00023288,4]
[311953084,1705513871209,-500.0,0.00023288,4]
[311953085,1705513871226,-500.0,0.00023288,4]
[311953086,1705513871240,-500.0,0.00023288,4]
[311953087,1705513871258,-500.0,0.00023288,4]
[311953088,1705513871270,-500.0,0.00023288,4]
[311953089,1705513871293,-500.0,0.00023288,4]
[311953090,1705513871305,-500.0,0.00023288,4]
[311953091,1705513871320,-500.0,0.00023288,4]
[311953092,1705513871336,-500.0,0.00023288,4]
[311953093,1705513871354,-500.0,0.00023288,4]
[311953094,1705513871368,-3258.21,0.00023422,2]
[311953095,1705513871382,-1592.28,0.00023422,2]
[311953096,1705513871397,-500.0,0.00023423,2]
[311953097,1705513871413,-500.0,0.00023423,2]
[311953098,1705513871429,-500.0,0.00023423,2]
[311953099,1705513871446,-524.42,0.00023423,2]
[311953100,1705513871461,-558.05,0.00023424,2]
[311953101,1705513871472,-592.06,0.00023424,2]
[311953102,1705513871487,-500.0,0.00023424,2]
[311953103,1705513871501,-500.0,0.00023424,2]
[311953104,1705513871517,-500.0,0.00023424,2]
[311953105,1705513871548,-500.0,0.00023424,2]
[311953106,1705513871578,-500.0,0.00023424,2]
[311953107,1705513871595,-500.0,0.00023424,2]
[311953108,1705513871609,-13706.8,0.00023424,2]
[311953109,1705513871628,-500.0,0.00023424,2]
[311953110,1705513871644,-2042.28,0.00023424,2]
[311953111,1705513871661,-500.0,0.00023424,2]
[311953112,1705513871675,-500.0,0.00023424,2]
[311953113,1705513871690,-500.0,0.00023424,2]
[311953114,1705513871706,-652.93,0.00023424,2]
[311953115,1705513871725,-500.0,0.00023424,2]
[311953116,1705513871748,-1459.83,0.00023424,2]
[311953117,1705513871774,-500.0,0.00023424,2]
[311953118,1705513871800,-500.0,0.00023424,2]
[311953119,1705513871817,-500.0,0.00023424,2]
[311953120,1705513871831,-500.0,0.00023424,2]
[311953121,1705513871849,-500.0,0.00023424,2]
[311953122,1705513871868,-500.0,0.00023424,2]
[311953123,1705513871891,-500.0,0.00023424,2]
[311953124,1705513871910,-2933.48,0.00023424,2]
[311953125,1705513871932,-500.0,0.00023424,2]
[311953126,1705513871948,-500.0,0.00023424,2]
[311953127,1705513871970,-166.666666,0.00023456,2]
[311953128,1705513871986,-3258.21,0.00023559,2]
[311953129,1705513872011,-1592.28,0.00023559,2]
[311953130,1705513872033,-558.05,0.00023561,2]
[311953131,1705513872049,-592.06,0.00023561,2]
[311953132,1705513872067,-500.0,0.00023561,2]
[311953133,1705513872084,-500.0,0.00023561,2]
[311953134,1705513872101,-500.0,0.00023561,2]
[311953135,1705513872119,-500.0,0.00023561,2]
[311953136,1705513872133,-500.0,0.00023561,2]
[311953137,1705513872151,-519.32,0.00023561,2]
[311953138,1705513872165,-2735.20374215,0.00023561,2]
[311953139,1705513872338,-4682.44158881,0.00023561,2]
[311953140,1705513872751,-500.0,0.00021917,2]
[311953141,1705513872782,-984.455,0.00023561,2]
[311953142,1705513872951,-5304.69966904,0.00023561,2]
[311953143,1705513872966,-541.4,0.00023561,2]
[311953144,1705513872979,-500.0,0.00023561,2]
[311953145,1705513872992,-500.0,0.00023561,2]
[311953146,1705513873004,-652.93,0.00023561,2]
[311953147,1705513873015,-500.0,0.00023561,2]
[311953148,1705513873031,-1459.83,0.00023561,2]
[311953149,1705513873044,-500.0,0.00023561,2]
[311953150,1705513873058,-500.0,0.00023561,2]
[311953151,1705513873075,-500.0,0.00023561,2]
[311953152,1705513873130,-500.0,0.00023561,2]
[311953153,1705513873155,-500.0,0.00023561,2]
[311953154,1705513873172,-500.0,0.00023561,2]
[311953155,1705513873199,-500.0,0.00023561,2]
[311953156,1705513873220,-2933.48,0.00023561,2]
[311953157,1705513873236,-500.0,0.00023561,2]
[311953158,1705513873252,-500.0,0.00023561,2]
[311953159,1705513873273,-3258.21,0.00023696,2]
[311953160,1705513873299,-1592.28,0.00023696,2]
[311953161,1705513873313,-111.95096903,0.00023698,2]
[311953162,1705513873455,-2386.4,0.00021917,2]
[311953163,1705513873466,-908.32,0.00022051,2]
[311953164,1705513873553,-2201.962493,0.00022051,2]
[311953165,1705513873566,-2135.41357375,0.00022051,2]
[311953174,1705514055603,154.84514985,0.000176,2]
[311953256,1705514397623,1274.21523244,0.000176,2]